[Event "*** Titled Tuesday Blitz"]
[Site "Chess.com"]
[Date "2019.03.05"]
[Round "3"]
[White "SolidAsARook"]
[Black "NeverEverForever1990"]
[Result "0-1"]
[WhiteElo "2189"]
[BlackElo "2345"]
[TimeControl "180+2"]
[EndTime "13:41:27 PST"]
[Termination "NeverEverForever1990 won by resignation"]

1. c4 {[%clk 0:03:01.9]} 1... e6 {[%clk 0:02:57.6]} 2. g3 {[%clk 0:03:02.4]}
2... d5 {[%clk 0:02:55]} 3. Bg2 {[%clk 0:03:04.3]} 3... Nf6 {[%clk 0:02:56.4]}
4. Nf3 {[%clk 0:03:05.4]} 4... a6 {[%clk 0:02:55.9]} 5. O-O {[%clk 0:03:04.5]}
5... dxc4 {[%clk 0:02:45.8]} 6. Qc2 {[%clk 0:03:03]} 6... b5 {[%clk 0:02:38.4]}
7. a4 {[%clk 0:02:55.3]} 7... Bb7 {[%clk 0:02:37.8]} 8. Rd1 {[%clk 0:02:44.3]}
8... Nc6 {[%clk 0:02:31.2]} 9. d4 {[%clk 0:02:24.3]} 9... Nb4 {[%clk 0:01:53.5]}
10. Qd2 {[%clk 0:02:24.1]} 10... Ne4 {[%clk 0:01:47.3]} 11. Qf4 {[%clk
0:02:19.6]} 11... Nc2 {[%clk 0:01:18.1]} 12. Ne5 {[%clk 0:02:03.2]} 12... Qf6
{[%clk 0:01:16]} 13. Ra2 {[%clk 0:01:16.8]} 13... Nb4 {[%clk 0:01:05.3]} 14. Ra1
{[%clk 0:01:14.2]} 14... Qxf4 {[%clk 0:00:59.7]} 15. gxf4 {[%clk 0:01:06.3]}
15... f6 {[%clk 0:00:47.5]} 16. Ng4 {[%clk 0:00:54.4]} 16... Nc2 {[%clk
0:00:38.3]} 17. Ra2 {[%clk 0:00:54.8]} 17... h5 {[%clk 0:00:34.8]} 18. Ne3
{[%clk 0:00:54.5]} 18... Nxe3 {[%clk 0:00:35.8]} 19. Bxe3 {[%clk 0:00:55.4]}
19... O-O-O {[%clk 0:00:34.6]} 20. axb5 {[%clk 0:00:55.7]} 20... axb5 {[%clk
0:00:36.5]} 21. Na3 {[%clk 0:00:54.3]} 21... Bxa3 {[%clk 0:00:36.4]} 22. Rxa3
{[%clk 0:00:55.3]} 22... Nd6 {[%clk 0:00:37]} 23. Bh3 {[%clk 0:00:48.8]} 23...
f5 {[%clk 0:00:35.1]} 24. b3 {[%clk 0:00:44.1]} 24... b4 {[%clk 0:00:29.4]} 25.
Ra4 {[%clk 0:00:43.8]} 25... cxb3 {[%clk 0:00:29.5]} 26. Rxb4 {[%clk 0:00:44.3]}
26... Bd5 {[%clk 0:00:30.6]} 27. Ra1 {[%clk 0:00:40.8]} 27... Kd7 {[%clk
0:00:31.3]} 28. Bg2 {[%clk 0:00:40.6]} 28... Rb8 {[%clk 0:00:31.5]} 29. Bd2
{[%clk 0:00:17.9]} 29... Rxb4 {[%clk 0:00:21.3]} 30. Bxb4 {[%clk 0:00:18.6]}
30... Rb8 {[%clk 0:00:22.8]} 31. Bc3 {[%clk 0:00:19.6]} 31... Ne4 {[%clk
0:00:21.2]} 32. Bb2 {[%clk 0:00:20.1]} 32... Nd2 {[%clk 0:00:20.9]} 33. Ra7
{[%clk 0:00:18.8]} 33... Nc4 {[%clk 0:00:21.4]} 34. Bxd5 {[%clk 0:00:16.3]}
34... exd5 {[%clk 0:00:23.3]} 35. Bc3 {[%clk 0:00:16.1]} 35... b2 {[%clk
0:00:24.7]} 36. Bxb2 {[%clk 0:00:17.7]} 36... Rxb2 {[%clk 0:00:26.5]} 0-1

[Event "*** Titled Tuesday Blitz"]
[Site "Chess.com"]
[Date "2019.03.05"]
[Round "3"]
[White "Manukyan_Artak"]
[Black "Babas"]
[Result "1-0"]
[WhiteElo "2403"]
[BlackElo "2253"]
[TimeControl "180+2"]
[EndTime "13:41:32 PST"]
[Termination "Manukyan_Artak won by resignation"]

1. e4 {[%clk 0:03:01.9]} 1... e5 {[%clk 0:02:59.1]} 2. Nf3 {[%clk 0:03:02.8]}
2... Nc6 {[%clk 0:03:00.5]} 3. d4 {[%clk 0:03:04.3]} 3... exd4 {[%clk
0:03:01.5]} 4. Nxd4 {[%clk 0:03:06.2]} 4... Nf6 {[%clk 0:03:02.9]} 5. Nxc6
{[%clk 0:03:07.2]} 5... bxc6 {[%clk 0:03:03.8]} 6. e5 {[%clk 0:03:08.8]} 6...
Qe7 {[%clk 0:03:05.2]} 7. Qe2 {[%clk 0:03:09.3]} 7... Nd5 {[%clk 0:03:06.7]} 8.
c4 {[%clk 0:03:10.9]} 8... Ba6 {[%clk 0:03:08]} 9. b3 {[%clk 0:03:12]} 9... g6
{[%clk 0:03:09.5]} 10. g3 {[%clk 0:03:13]} 10... Bg7 {[%clk 0:03:10.7]} 11. Bb2
{[%clk 0:03:14.4]} 11... O-O {[%clk 0:03:11.2]} 12. Bg2 {[%clk 0:03:14.2]} 12...
Rae8 {[%clk 0:03:12.7]} 13. O-O {[%clk 0:03:15.2]} 13... f6 {[%clk 0:03:13.5]}
14. Qd2 {[%clk 0:03:00.3]} 14... Nb6 {[%clk 0:03:13.2]} 15. exf6 {[%clk
0:02:56.8]} 15... Bxf6 {[%clk 0:03:13.8]} 16. Bxf6 {[%clk 0:02:57.4]} 16... Qxf6
{[%clk 0:03:13.4]} 17. Nc3 {[%clk 0:02:58.3]} 17... d5 {[%clk 0:03:14.3]} 18.
Rfe1 {[%clk 0:02:49.2]} 18... dxc4 {[%clk 0:03:09.6]} 19. Ne4 {[%clk 0:02:44.5]}
19... Qg7 {[%clk 0:03:06.4]} 20. Nc5 {[%clk 0:02:36.9]} 20... c3 {[%clk
0:02:16]} 21. Qc2 {[%clk 0:02:36.7]} 21... Bc8 {[%clk 0:02:11.5]} 22. Bxc6
{[%clk 0:02:29.9]} 22... Rxe1+ {[%clk 0:02:11.6]} 23. Rxe1 {[%clk 0:02:30.1]}
23... Bf5 {[%clk 0:02:13.5]} 24. Ne4 {[%clk 0:02:08.4]} 24... Bxe4 {[%clk
0:02:04.3]} 25. Rxe4 {[%clk 0:01:52.7]} 25... Rd8 {[%clk 0:01:56.1]} 26. Re3
{[%clk 0:01:34.7]} 26... Rd2 {[%clk 0:01:38.6]} 27. Qxc3 {[%clk 0:01:35.4]}
27... Qxc3 {[%clk 0:01:39.8]} 28. Rxc3 {[%clk 0:01:37.3]} 28... Rxa2 {[%clk
0:01:40.7]} 29. Be4 {[%clk 0:01:08.5]} 29... Re2 {[%clk 0:01:39.7]} 30. Bf3
{[%clk 0:00:58.3]} 30... Re7 {[%clk 0:01:38.2]} 31. h4 {[%clk 0:00:59.1]} 31...
Nc8 {[%clk 0:01:37.1]} 32. h5 {[%clk 0:00:58.2]} 32... Nd6 {[%clk 0:01:38.5]}
33. hxg6 {[%clk 0:00:56.9]} 33... hxg6 {[%clk 0:01:40.4]} 34. Rc6 {[%clk
0:00:56.1]} 34... Re1+ {[%clk 0:01:19.5]} 35. Kg2 {[%clk 0:00:56.4]} 35... Nb5
{[%clk 0:01:16.1]} 36. Rxg6+ {[%clk 0:00:47.3]} 36... Kf7 {[%clk 0:01:14.5]} 37.
Rc6 {[%clk 0:00:43.9]} 37... Ke7 {[%clk 0:01:12.2]} 38. Rc5 {[%clk 0:00:40.5]}
38... a6 {[%clk 0:01:12.7]} 39. Rc6 {[%clk 0:00:35.4]} 39... Ra1 {[%clk
0:01:02]} 40. Be2 {[%clk 0:00:33.5]} 40... Kd7 {[%clk 0:01:01.1]} 41. Bxb5
{[%clk 0:00:32.5]} 41... axb5 {[%clk 0:01:00.3]} 42. Rf6 {[%clk 0:00:33.5]}
42... Rb1 {[%clk 0:00:57]} 43. Rf3 {[%clk 0:00:34.3]} 43... c5 {[%clk
0:00:58.4]} 44. g4 {[%clk 0:00:35.3]} 44... Kd6 {[%clk 0:00:57.6]} 45. g5 {[%clk
0:00:35.9]} 45... c4 {[%clk 0:00:54]} 46. bxc4 {[%clk 0:00:36.4]} 46... bxc4
{[%clk 0:00:55.9]} 47. g6 {[%clk 0:00:36.4]} 47... Kd5 {[%clk 0:00:56.7]} 48. g7
{[%clk 0:00:34.5]} 48... Rb8 {[%clk 0:00:58.6]} 49. Rf8 {[%clk 0:00:35.5]} 1-0

[Event "*** Titled Tuesday Blitz"]
[Site "Chess.com"]
[Date "2019.03.05"]
[Round "3"]
[White "ShimanovAlex"]
[Black "Ainahia"]
[Result "0-1"]
[WhiteElo "2817"]
[BlackElo "2593"]
[TimeControl "180+2"]
[EndTime "13:41:37 PST"]
[Termination "Ainahia won on time"]

1. e4 {[%clk 0:03:01.9]} 1... e6 {[%clk 0:03:00.7]} 2. d4 {[%clk 0:03:02.3]}
2... d5 {[%clk 0:03:01.9]} 3. exd5 {[%clk 0:03:04.2]} 3... exd5 {[%clk
0:03:02.6]} 4. Bf4 {[%clk 0:03:05.7]} 4... Nf6 {[%clk 0:02:56]} 5. Nc3 {[%clk
0:03:05.5]} 5... Be7 {[%clk 0:02:51.6]} 6. Qd2 {[%clk 0:03:05.4]} 6... c6 {[%clk
0:02:45.3]} 7. O-O-O {[%clk 0:03:04.8]} 7... O-O {[%clk 0:02:45.8]} 8. f3 {[%clk
0:03:04.3]} 8... b5 {[%clk 0:02:47.2]} 9. g4 {[%clk 0:03:02.4]} 9... a5 {[%clk
0:02:46.5]} 10. Kb1 {[%clk 0:02:59.9]} 10... a4 {[%clk 0:02:46.4]} 11. Bd3
{[%clk 0:02:57.1]} 11... b4 {[%clk 0:02:43.5]} 12. Nce2 {[%clk 0:02:58.1]} 12...
Ba6 {[%clk 0:02:33.3]} 13. Nc1 {[%clk 0:02:55.7]} 13... Bc4 {[%clk 0:02:10.2]}
14. h4 {[%clk 0:02:48.8]} 14... Na6 {[%clk 0:01:55.6]} 15. Nge2 {[%clk
0:02:46.1]} 15... c5 {[%clk 0:01:55.2]} 16. dxc5 {[%clk 0:02:42.5]} 16... Nxc5
{[%clk 0:01:33.6]} 17. Bxc4 {[%clk 0:02:34]} 17... dxc4 {[%clk 0:01:35.5]} 18.
Qxb4 {[%clk 0:02:32.2]} 18... Qc8 {[%clk 0:01:22.7]} 19. Qxc4 {[%clk 0:02:30]}
19... a3 {[%clk 0:01:21.7]} 20. b3 {[%clk 0:02:29.6]} 20... Qb7 {[%clk
0:01:19.9]} 21. Nd4 {[%clk 0:02:04.9]} 21... Ra4 {[%clk 0:00:51.1]} 22. Qe2
{[%clk 0:01:23.4]} 22... Nd5 {[%clk 0:00:52.1]} 23. Qd2 {[%clk 0:01:24.7]} 23...
Nxf4 {[%clk 0:00:48.9]} 24. Qxf4 {[%clk 0:01:25]} 24... Ne6 {[%clk 0:00:50.4]}
25. Nxe6 {[%clk 0:01:13]} 25... Rxf4 {[%clk 0:00:51.1]} 26. Nxf4 {[%clk
0:01:14]} 26... Qxf3 {[%clk 0:00:52.6]} 27. Nd5 {[%clk 0:01:15.5]} 27... Bd8
{[%clk 0:00:45.2]} 28. g5 {[%clk 0:01:11.1]} 28... f6 {[%clk 0:00:41.9]} 29.
Rhf1 {[%clk 0:00:51]} 29... Qg4 {[%clk 0:00:39.9]} 30. gxf6 {[%clk 0:00:47.5]}
30... Bxf6 {[%clk 0:00:41.8]} 31. Nxf6+ {[%clk 0:00:42.1]} 31... Rxf6 {[%clk
0:00:43.7]} 32. Rg1 {[%clk 0:00:37.8]} 32... Qc8 {[%clk 0:00:28.8]} 33. Nd3
{[%clk 0:00:35.9]} 33... Qc3 {[%clk 0:00:26.9]} 34. Rde1 {[%clk 0:00:34.3]}
34... Rf2 {[%clk 0:00:21.5]} 35. Rc1 {[%clk 0:00:22.7]} 35... Rd2 {[%clk
0:00:22.6]} 0-1

[Event "*** Titled Tuesday Blitz"]
[Site "Chess.com"]
[Date "2019.03.05"]
[Round "3"]
[White "Zq1"]
[Black "GMKrikor"]
[Result "1-0"]
[WhiteElo "2547"]
[BlackElo "2720"]
[TimeControl "180+2"]
[EndTime "13:41:37 PST"]
[Termination "Zq1 won by resignation"]

1. d4 {[%clk 0:03:01.9]} 1... Nf6 {[%clk 0:03:00.9]} 2. c4 {[%clk 0:03:02]} 2...
e6 {[%clk 0:03:02.2]} 3. g3 {[%clk 0:03:02.8]} 3... d5 {[%clk 0:02:57.2]} 4. Bg2
{[%clk 0:03:03.7]} 4... Bb4+ {[%clk 0:02:56.6]} 5. Nd2 {[%clk 0:03:03.6]} 5...
O-O {[%clk 0:02:56.7]} 6. Nf3 {[%clk 0:03:04.4]} 6... b6 {[%clk 0:02:56.5]} 7.
O-O {[%clk 0:03:04.2]} 7... Bb7 {[%clk 0:02:57.1]} 8. Qc2 {[%clk 0:03:04.1]}
8... a5 {[%clk 0:02:49.5]} 9. a3 {[%clk 0:02:55.6]} 9... Be7 {[%clk 0:02:44.8]}
10. b3 {[%clk 0:02:54.1]} 10... c5 {[%clk 0:02:25.3]} 11. Bb2 {[%clk 0:02:54.4]}
11... Nbd7 {[%clk 0:02:22.7]} 12. Rfd1 {[%clk 0:02:50.6]} 12... Rc8 {[%clk
0:02:23.3]} 13. Rac1 {[%clk 0:02:32.2]} 13... b5 {[%clk 0:02:00.1]} 14. cxd5
{[%clk 0:02:14.2]} 14... Bxd5 {[%clk 0:01:50.5]} 15. Qb1 {[%clk 0:02:04.4]}
15... Qb6 {[%clk 0:01:45.9]} 16. e4 {[%clk 0:01:50.7]} 16... Bb7 {[%clk
0:01:43.8]} 17. e5 {[%clk 0:01:46.9]} 17... Nd5 {[%clk 0:01:37.9]} 18. Ne4
{[%clk 0:01:43.4]} 18... h6 {[%clk 0:01:35.5]} 19. dxc5 {[%clk 0:01:27.7]} 19...
Nxc5 {[%clk 0:01:35.1]} 20. Bd4 {[%clk 0:01:27.5]} 20... b4 {[%clk 0:01:18.5]}
21. a4 {[%clk 0:01:20.6]} 21... Rc7 {[%clk 0:01:19.5]} 22. Rc2 {[%clk
0:01:02.9]} 22... Rfc8 {[%clk 0:01:14.9]} 23. Rdc1 {[%clk 0:01:00.4]} 23... Rc6
{[%clk 0:00:57.7]} 24. Nd6 {[%clk 0:00:46.5]} 24... R8c7 {[%clk 0:00:57.3]} 25.
Nd2 {[%clk 0:00:36.2]} 25... Nc3 {[%clk 0:00:47.5]} 26. Bxc3 {[%clk 0:00:35.9]}
26... bxc3 {[%clk 0:00:47.9]} 27. Rxc3 {[%clk 0:00:35.6]} 27... Bxd6 {[%clk
0:00:41]} 28. exd6 {[%clk 0:00:35.7]} 28... Rc8 {[%clk 0:00:28.4]} 29. Nc4
{[%clk 0:00:33.1]} 29... Qa6 {[%clk 0:00:27.3]} 30. Ne5 {[%clk 0:00:30.1]} 30...
Rxd6 {[%clk 0:00:19.7]} 31. Bxb7 {[%clk 0:00:22.8]} 31... Qxb7 {[%clk
0:00:21.6]} 32. Rxc5 {[%clk 0:00:23.7]} 32... Rcd8 {[%clk 0:00:20.8]} 33. R5c3
{[%clk 0:00:19.4]} 33... h5 {[%clk 0:00:16.6]} 34. Rc7 {[%clk 0:00:20]} 34...
Qb4 {[%clk 0:00:09.6]} 35. Nxf7 {[%clk 0:00:20.5]} 35... Rd2 {[%clk 0:00:07]}
36. Nxd8 {[%clk 0:00:20.3]} 36... Qd4 {[%clk 0:00:06.7]} 37. Rf1 {[%clk
0:00:20.8]} 1-0

[Event "*** Titled Tuesday Blitz"]
[Site "Chess.com"]
[Date "2019.03.05"]
[Round "3"]
[White "Slovak_fighter2000"]
[Black "Jospem"]
[Result "0-1"]
[WhiteElo "2461"]
[BlackElo "2870"]
[TimeControl "180+2"]
[EndTime "13:41:37 PST"]
[Termination "Jospem won by resignation"]

1. d4 {[%clk 0:03:01.9]} 1... Nf6 {[%clk 0:03:00.8]} 2. Bf4 {[%clk 0:03:02]}
2... g6 {[%clk 0:03:01.6]} 3. Nc3 {[%clk 0:03:01.6]} 3... Bg7 {[%clk 0:03:03.2]}
4. e4 {[%clk 0:03:02.5]} 4... d6 {[%clk 0:03:04.9]} 5. Qd2 {[%clk 0:03:03.3]}
5... O-O {[%clk 0:03:06.4]} 6. Nf3 {[%clk 0:03:03.6]} 6... Nc6 {[%clk 0:03:08]}
7. O-O-O {[%clk 0:03:01.9]} 7... Bg4 {[%clk 0:03:09]} 8. Qe3 {[%clk 0:03:02.3]}
8... Nh5 {[%clk 0:02:59.2]} 9. Bh6 {[%clk 0:02:55.9]} 9... Bxf3 {[%clk
0:03:00.2]} 10. gxf3 {[%clk 0:02:55.9]} 10... Bxh6 {[%clk 0:02:43.9]} 11. Qxh6
{[%clk 0:02:55.8]} 11... e6 {[%clk 0:02:45.4]} 12. h4 {[%clk 0:02:38.7]} 12...
Qf6 {[%clk 0:02:45.1]} 13. d5 {[%clk 0:02:33.7]} 13... Ne5 {[%clk 0:02:42.8]}
14. Be2 {[%clk 0:02:26.1]} 14... a6 {[%clk 0:02:34.8]} 15. Rdg1 {[%clk 0:02:22]}
15... Qf4+ {[%clk 0:02:35.2]} 16. Qxf4 {[%clk 0:02:20]} 16... Nxf4 {[%clk
0:02:37.1]} 17. Kd2 {[%clk 0:02:14.6]} 17... b5 {[%clk 0:01:56.2]} 18. a3 {[%clk
0:02:03.5]} 18... Rae8 {[%clk 0:01:52.7]} 19. h5 {[%clk 0:01:57.2]} 19... Kh8
{[%clk 0:01:49]} 20. hxg6 {[%clk 0:01:57.5]} 20... fxg6 {[%clk 0:01:49.4]} 21.
dxe6 {[%clk 0:01:42.2]} 21... Rxe6 {[%clk 0:01:45.7]} 22. Rg3 {[%clk 0:01:40.1]}
22... Ref6 {[%clk 0:01:44.9]} 23. Bd1 {[%clk 0:01:27.5]} 23... c6 {[%clk
0:01:44.7]} 24. Kc1 {[%clk 0:01:23.6]} 24... h5 {[%clk 0:01:31.7]} 25. Ne2
{[%clk 0:01:09.5]} 25... Ne6 {[%clk 0:01:30.8]} 26. Ng1 {[%clk 0:01:00.9]} 26...
Kh7 {[%clk 0:01:23.2]} 27. Rh2 {[%clk 0:00:52.5]} 27... Kh6 {[%clk 0:01:23]} 28.
b3 {[%clk 0:00:51.1]} 28... a5 {[%clk 0:01:19.4]} 29. Kb2 {[%clk 0:00:51.8]}
29... b4 {[%clk 0:01:20.5]} 30. a4 {[%clk 0:00:49.4]} 30... c5 {[%clk
0:01:21.7]} 31. Be2 {[%clk 0:00:48.7]} 31... Nd4 {[%clk 0:01:23]} 32. Bd1 {[%clk
0:00:49.7]} 32... Ndxf3 {[%clk 0:01:16.1]} 33. Nxf3 {[%clk 0:00:47.6]} 33...
Nxf3 {[%clk 0:01:18]} 34. Rhg2 {[%clk 0:00:45.2]} 34... Ne5 {[%clk 0:01:18.7]}
35. f3 {[%clk 0:00:41.6]} 35... c4 {[%clk 0:01:20]} 36. Be2 {[%clk 0:00:37.4]}
36... c3+ {[%clk 0:01:20.2]} 37. Kc1 {[%clk 0:00:37.9]} 37... Rd8 {[%clk
0:01:21.4]} 38. Kd1 {[%clk 0:00:36.6]} 38... d5 {[%clk 0:01:21.6]} 39. exd5
{[%clk 0:00:33.9]} 39... Rxd5+ {[%clk 0:01:23.5]} 40. Ke1 {[%clk 0:00:34]} 40...
g5 {[%clk 0:01:19.5]} 41. Bd1 {[%clk 0:00:29.2]} 41... Ng6 {[%clk 0:01:18.6]}
42. Re2 {[%clk 0:00:23.3]} 42... Nf4 {[%clk 0:01:17.5]} 43. Re8 {[%clk
0:00:22.9]} 43... Re6+ {[%clk 0:01:18.6]} 44. Rxe6+ {[%clk 0:00:22.9]} 44...
Nxe6 {[%clk 0:01:20.5]} 45. Be2 {[%clk 0:00:21.6]} 45... Nf4 {[%clk 0:01:21.6]}
46. Bd1 {[%clk 0:00:13.9]} 46... h4 {[%clk 0:01:21.9]} 47. Rg1 {[%clk
0:00:14.1]} 47... Rd2 {[%clk 0:01:23.3]} 48. Rh1 {[%clk 0:00:13.5]} 48... h3
{[%clk 0:01:24.6]} 49. Rg1 {[%clk 0:00:09.5]} 49... h2 {[%clk 0:01:25.2]} 50.
Rh1 {[%clk 0:00:10.8]} 50... Ng2+ {[%clk 0:01:26.5]} 51. Kf1 {[%clk 0:00:11.5]}
51... Ne3+ {[%clk 0:01:28.1]} 52. Ke1 {[%clk 0:00:12.6]} 52... Rxd1+ {[%clk
0:01:29.7]} 0-1

[Event "*** Titled Tuesday Blitz"]
[Site "Chess.com"]
[Date "2019.03.05"]
[Round "3"]
[White "Denis_Palkovich"]
[Black "lolo9292"]
[Result "0-1"]
[WhiteElo "2236"]
[BlackElo "2075"]
[TimeControl "180+2"]
[EndTime "13:41:42 PST"]
[Termination "lolo9292 won on time"]

1. d4 {[%clk 0:03:01.9]} 1... Nf6 {[%clk 0:02:50.8]} 2. Bf4 {[%clk 0:03:02.3]}
2... c5 {[%clk 0:02:51.3]} 3. e3 {[%clk 0:03:01.9]} 3... Qb6 {[%clk 0:02:51.4]}
4. Na3 {[%clk 0:03:01.8]} 4... Qxb2 {[%clk 0:02:49.7]} 5. Nb5 {[%clk 0:03:02.6]}
5... Nd5 {[%clk 0:02:49.5]} 6. a3 {[%clk 0:02:53.8]} 6... a6 {[%clk 0:02:48.2]}
7. Rb1 {[%clk 0:02:41.9]} 7... Qa2 {[%clk 0:02:44.2]} 8. Qc1 {[%clk 0:02:26.9]}
8... axb5 {[%clk 0:02:42.9]} 9. Ra1 {[%clk 0:02:27.5]} 9... Qxa1 {[%clk
0:02:43.8]} 10. Qxa1 {[%clk 0:02:28.3]} 10... e5 {[%clk 0:02:45.2]} 11. dxe5
{[%clk 0:02:20.5]} 11... c4 {[%clk 0:02:47.1]} 12. Nf3 {[%clk 0:02:08.4]} 12...
Nc6 {[%clk 0:02:45.5]} 13. Be2 {[%clk 0:02:04.5]} 13... Rxa3 {[%clk 0:02:46.5]}
14. Qc1 {[%clk 0:01:51.1]} 14... Bb4+ {[%clk 0:02:47]} 15. Kf1 {[%clk
0:01:51.2]} 15... O-O {[%clk 0:02:31.5]} 16. g3 {[%clk 0:01:42.4]} 16... d6
{[%clk 0:02:31.9]} 17. Kg2 {[%clk 0:01:42.1]} 17... dxe5 {[%clk 0:02:21.3]} 18.
Nxe5 {[%clk 0:01:38.8]} 18... Nxe5 {[%clk 0:02:22.5]} 19. Bxe5 {[%clk 0:01:40]}
19... Bf5 {[%clk 0:02:04]} 20. Bf3 {[%clk 0:01:24.5]} 20... Be6 {[%clk
0:01:59.3]} 21. e4 {[%clk 0:01:24.9]} 21... Nc3 {[%clk 0:01:55.2]} 22. Bxc3
{[%clk 0:01:11.2]} 22... Rxc3 {[%clk 0:01:57.1]} 23. Qb2 {[%clk 0:01:11.8]}
23... Ba5 {[%clk 0:01:53.6]} 24. Qxb5 {[%clk 0:01:12.6]} 24... b6 {[%clk
0:01:54.8]} 25. Rc1 {[%clk 0:00:59]} 25... Rd8 {[%clk 0:01:48.9]} 26. h4 {[%clk
0:00:56.9]} 26... h6 {[%clk 0:01:47.1]} 27. g4 {[%clk 0:00:57.1]} 27... Rd2
{[%clk 0:01:48.4]} 28. g5 {[%clk 0:00:52]} 28... hxg5 {[%clk 0:01:47.7]} 29.
hxg5 {[%clk 0:00:51.1]} 29... Bd7 {[%clk 0:01:42.6]} 30. Qe5 {[%clk 0:00:45.7]}
30... Bh3+ {[%clk 0:01:38.3]} 31. Kg3 {[%clk 0:00:42.3]} 31... Bb4 {[%clk
0:01:20.7]} 32. Rb1 {[%clk 0:00:28.5]} 32... Bd6 {[%clk 0:01:20.6]} 33. Qxd6
{[%clk 0:00:21.9]} 33... Rxd6 {[%clk 0:01:22.5]} 34. e5 {[%clk 0:00:16.2]} 34...
Rd2 {[%clk 0:01:20.1]} 35. Rxb6 {[%clk 0:00:16.8]} 35... Be6 {[%clk 0:01:16.4]}
36. Kg2 {[%clk 0:00:12.4]} 36... g6 {[%clk 0:01:15.7]} 37. Be4 {[%clk
0:00:07.9]} 37... Kg7 {[%clk 0:01:16.6]} 38. Kf1 {[%clk 0:00:02.5]} 38... Rd8
{[%clk 0:01:17.4]} 39. Ke1 {[%clk 0:00:03]} 39... Re8 {[%clk 0:01:18.1]} 40. Kd2
{[%clk 0:00:03.8]} 40... Rf8 {[%clk 0:01:19.3]} 41. Kxc3 {[%clk 0:00:04.9]}
41... Rh8 {[%clk 0:01:15]} 42. Kd4 {[%clk 0:00:04.3]} 42... Rh4 {[%clk
0:01:14.9]} 43. Ke3 {[%clk 0:00:03.5]} 43... Rh3+ {[%clk 0:01:14.9]} 44. f3
{[%clk 0:00:04.3]} 44... Rg3 {[%clk 0:01:15.4]} 45. Kf4 {[%clk 0:00:03.9]} 45...
Rg2 {[%clk 0:01:16.3]} 46. Rc6 {[%clk 0:00:02.4]} 46... Rd2 {[%clk 0:01:15]} 0-1

[Event "*** Titled Tuesday Blitz"]
[Site "Chess.com"]
[Date "2019.03.05"]
[Round "3"]
[White "SuperCheese"]
[Black "Angry_Serb"]
[Result "0-1"]
[WhiteElo "2615"]
[BlackElo "2565"]
[TimeControl "180+2"]
[EndTime "13:41:46 PST"]
[Termination "Angry_Serb won by resignation"]

1. d4 {[%clk 0:03:01.9]} 1... Nf6 {[%clk 0:02:58]} 2. c4 {[%clk 0:03:02.7]} 2...
c5 {[%clk 0:02:58.9]} 3. d5 {[%clk 0:03:03.3]} 3... e6 {[%clk 0:03:00.5]} 4. Nc3
{[%clk 0:03:04.2]} 4... exd5 {[%clk 0:03:01.9]} 5. cxd5 {[%clk 0:03:05.9]} 5...
Bd6 {[%clk 0:03:03.5]} 6. Nf3 {[%clk 0:03:01.2]} 6... Bc7 {[%clk 0:03:02.1]} 7.
d6 {[%clk 0:03:01.3]} 7... Ba5 {[%clk 0:03:03.7]} 8. e3 {[%clk 0:02:48.9]} 8...
Ne4 {[%clk 0:02:59.7]} 9. Qd3 {[%clk 0:02:41.3]} 9... f5 {[%clk 0:02:46.5]} 10.
Bd2 {[%clk 0:02:24.9]} 10... Nxd2 {[%clk 0:02:24.1]} 11. Nxd2 {[%clk 0:02:26.8]}
11... Bxc3 {[%clk 0:02:21]} 12. Qxc3 {[%clk 0:02:19.8]} 12... O-O {[%clk
0:02:16.5]} 13. Qxc5 {[%clk 0:02:18.3]} 13... Qf6 {[%clk 0:02:03.8]} 14. Bc4+
{[%clk 0:01:49.1]} 14... Kh8 {[%clk 0:02:04.3]} 15. O-O {[%clk 0:01:50.7]} 15...
Qxb2 {[%clk 0:02:04.6]} 16. Nf3 {[%clk 0:01:47.8]} 16... Nc6 {[%clk 0:02:04.7]}
17. Qd5 {[%clk 0:00:56.9]} 17... Qf6 {[%clk 0:01:49.6]} 18. Bb5 {[%clk
0:00:56.1]} 18... a6 {[%clk 0:01:47.3]} 19. Bxc6 {[%clk 0:00:54.4]} 19... dxc6
{[%clk 0:01:48.8]} 20. Qc5 {[%clk 0:00:50.5]} 20... Be6 {[%clk 0:01:46.1]} 21.
Rad1 {[%clk 0:00:48.1]} 21... Bxa2 {[%clk 0:01:44.5]} 22. Qb6 {[%clk 0:00:45.5]}
22... Rf7 {[%clk 0:01:40]} 23. d7 {[%clk 0:00:44.9]} 23... Bd5 {[%clk
0:01:40.6]} 24. Qxb7 {[%clk 0:00:40.9]} 24... Rd8 {[%clk 0:01:39.6]} 25. Nd4
{[%clk 0:00:40]} 25... Rfxd7 {[%clk 0:00:46.3]} 26. Qxa6 {[%clk 0:00:40.6]}
26... Qg5 {[%clk 0:00:47.1]} 27. g3 {[%clk 0:00:40.5]} 27... Qh5 {[%clk
0:00:43.2]} 28. Qb6 {[%clk 0:00:36.9]} 28... Qg6 {[%clk 0:00:16.6]} 29. Nf3
{[%clk 0:00:31.8]} 29... Qf6 {[%clk 0:00:12.9]} 30. Nh4 {[%clk 0:00:29.6]} 30...
g5 {[%clk 0:00:12.6]} 31. Ng2 {[%clk 0:00:30.3]} 31... Qe6 {[%clk 0:00:12.3]}
32. Rd4 {[%clk 0:00:29.7]} 32... Kg7 {[%clk 0:00:11.7]} 33. Qb2 {[%clk
0:00:30.2]} 33... Kg6 {[%clk 0:00:12.7]} 34. Rfd1 {[%clk 0:00:31.6]} 34... h6
{[%clk 0:00:11.3]} 35. Qd2 {[%clk 0:00:32.2]} 35... Qf7 {[%clk 0:00:09.4]} 36.
h4 {[%clk 0:00:32.7]} 36... Be6 {[%clk 0:00:10]} 37. hxg5 {[%clk 0:00:33.2]}
37... hxg5 {[%clk 0:00:10.9]} 38. e4 {[%clk 0:00:33.3]} 38... Rxd4 {[%clk
0:00:10.6]} 39. exf5+ {[%clk 0:00:33.3]} 39... Bxf5 {[%clk 0:00:10.9]} 40. Qxd4
{[%clk 0:00:33.9]} 40... Rxd4 {[%clk 0:00:12.8]} 41. Rxd4 {[%clk 0:00:35.4]}
41... Qe6 {[%clk 0:00:12.5]} 42. Ne3 {[%clk 0:00:36.6]} 42... Bh3 {[%clk
0:00:11.1]} 43. Nc4 {[%clk 0:00:37.4]} 43... Qe1+ {[%clk 0:00:11.6]} 44. Kh2
{[%clk 0:00:38.7]} 44... Qxf2+ {[%clk 0:00:12.4]} 45. Kxh3 {[%clk 0:00:40.6]}
45... Qxd4 {[%clk 0:00:14.2]} 0-1